bitfinex-derivatives/quotes_BNBF0:USTF0_20250521
["timestamp","ask_amount","ask_price","bid_price","bid_amount"]
[1747827064133,2.28112792,655.51,654.68,2.0750192]
[1747827064329,2.28112792,655.51,654.69,0.90432627]
[1747827064536,2.28112792,655.51,654.7,0.90432627]
[1747827064833,2.28112792,655.51,654.71,1.20944936]
[1747827065031,2.28112792,655.51,654.72,0.90431093]
[1747827065235,2.28112792,655.51,654.73,0.90431093]
[1747827065436,2.28112792,655.51,654.74,1.76978684]
[1747827065635,2.28112792,655.51,654.75,0.59909391]
[1747827065835,2.28112792,655.51,654.76,1.76978684]
[1747827066036,2.28112792,655.51,654.77,0.59909391]
[1747827066237,2.28112792,655.51,654.78,0.59909391]
[1747827066437,2.28112792,655.51,654.79,0.59909391]
[1747827066733,2.28112792,655.51,654.8,0.59897725]
[1747827066938,2.28112792,655.51,654.81,0.59897725]
[1747827067139,2.28112792,655.51,654.82,0.59897725]
[1747827067439,2.28112792,655.51,654.83,0.59897725]
[1747827067638,2.28112792,655.51,654.83,0.30512309]
[1747827069041,2.28112792,655.66,654.83,0.30512309]
[1747827069235,2.28112792,655.66,654.63,0.30512309]
[1747827069432,2.28112792,655.66,654.64,2.07386321]
[1747827069638,2.28112792,655.66,654.65,0.9040886]
[1747827069839,2.28112792,655.66,654.66,0.9040886]
[1747827070040,2.28112792,655.66,654.67,2.07386321]
[1747827070340,2.28112792,655.66,654.68,2.07385148]
[1747827070536,2.28112792,655.66,654.69,1.20919996]
[1747827070741,2.28112792,655.66,654.7,2.07385148]
[1747827070942,2.28112792,655.66,654.71,0.90407687]
[1747827071136,2.28112792,655.66,654.72,0.90407687]
[1747827071338,2.28112792,655.66,654.73,2.07385148]
[1747827071537,2.28112792,655.66,654.74,0.90407687]
[1747827071740,2.28112792,655.66,654.75,0.90407475]
[1747827071940,2.28112792,655.66,654.76,0.59881992]
[1747827072235,2.28112792,655.67,654.77,0.59881992]
[1747827072436,2.28112792,655.67,654.78,0.59881992]
[1747827072640,2.28112792,655.67,654.79,0.59881992]
[1747827072841,2.28112792,655.67,654.8,0.59881992]
[1747827073036,2.28112792,655.67,654.81,0.59881992]
[1747827073238,2.28112792,655.67,654.82,0.59881992]
[1747827073544,2.28112792,655.67,654.83,0.59881992]
[1747827073745,2.28112792,655.67,654.84,0.59881992]
[1747827073940,2.28112792,655.67,654.81,0.30512309]
[1747827074136,2.28112792,655.67,654.82,0.59879074]
[1747827074339,2.28112792,655.67,654.83,0.59879074]
[1747827074537,2.28112792,655.67,654.81,0.30512309]
[1747827074742,2.28112792,655.67,654.82,0.59880411]
[1747827074943,2.28112792,655.67,654.81,0.30512309]
[1747827075143,0.26557283,656.06,654.83,0.30512309]
[1747827075144,2.28112792,655.69,654.83,0.30512309]
[1747827075840,2.28112792,655.69,654.56,0.30512309]
[1747827076047,2.28112792,655.69,654.57,0.90394757]
[1747827076339,2.28112792,655.69,654.58,0.90394757]
[1747827076541,2.28112792,655.69,654.59,2.07355764]
[1747827076749,2.28112792,655.69,654.6,0.90394757]
[1747827077047,2.28112792,655.69,654.61,2.07355764]
[1747827077247,2.28112792,655.69,654.62,0.90394808]
[1747827077446,2.28112792,655.69,654.63,0.90394808]
[1747827077642,2.28112792,655.73,654.64,0.90394808]
[1747827077843,2.28112792,655.73,654.65,2.07355815]
[1747827078044,2.28112792,655.73,654.66,0.90394808]
[1747827078246,2.28112792,655.73,654.67,0.90394808]
[1747827078450,2.28112792,655.73,654.68,0.90394808]
[1747827078641,2.28112792,655.73,654.69,2.37868124]
[1747827078846,2.28112792,655.73,654.7,0.90394808]
[1747827079043,2.28112792,655.73,654.71,0.90397285]
[1747827079251,2.28112792,655.73,654.72,2.07358292]
[1747827079448,2.28112792,655.73,654.73,2.07358292]
[1747827079645,2.28112792,655.7,654.74,0.90397285]
[1747827079848,2.28112792,655.7,654.75,0.90397285]
[1747827080051,2.28112792,655.7,654.76,0.90397285]
[1747827080351,2.28112792,655.7,654.77,2.07358292]
[1747827080549,2.28112792,655.7,654.78,2.07358292]
[1747827080760,2.28112792,655.7,654.79,0.9039356]
[1747827080954,2.28112792,655.7,654.8,0.9039356]
[1747827081252,2.28112792,655.7,654.81,0.9039356]
[1747827081453,2.28112792,655.7,654.82,0.9039356]
[1747827081653,2.28112792,655.7,654.83,2.07354567]
[1747827081847,2.28112792,655.7,654.84,2.07354567]
[1747827082052,2.28112792,655.7,654.85,0.59876857]
[1747827082253,2.28112792,655.7,654.86,0.59876857]
[1747827082451,2.28112792,655.7,654.87,1.76837864]
[1747827082656,2.28112792,655.71,654.88,0.59876857]
[1747827083156,2.28112792,655.71,654.89,0.59876857]
[1747827083361,2.28112792,655.71,654.9,0.59876857]
[1747827083554,2.28112792,655.71,654.91,0.90389166]
[1747827083758,2.28112792,655.71,654.92,0.59876857]
[1747827084360,2.28112792,655.71,654.93,0.59880403]
[1747827084559,2.28112792,655.71,654.94,0.59880403]
[1747827084762,2.28112792,655.71,654.91,0.30512309]
[1747827084962,2.28112792,655.65,654.95,0.30512309]
[1747827086655,2.28112792,655.65,654.73,0.30512309]
[1747827086865,2.28112792,655.65,654.74,0.90413539]
[1747827087059,2.28112792,655.65,654.75,2.07284388]
[1747827087259,2.28112792,655.65,654.76,0.90413539]
[1747827087455,2.28112792,655.65,654.77,0.90413539]
[1747827087656,2.28112792,655.6,654.78,2.07284388]
[1747827087961,2.28112792,655.6,654.79,0.90418151]
[1747827088161,2.28112792,655.6,654.8,2.07289]
[1747827088356,2.28112792,655.6,654.81,0.90418151]
[1747827088556,2.28112792,655.6,654.82,2.07289]
[1747827088759,2.28112792,655.6,654.83,2.07289]
[1747827088962,2.28112792,655.6,654.83,1.16870849]
[1747827089162,2.28112792,655.6,654.82,0.30512309]
[1747827089764,2.28112792,655.6,654.83,1.16967988]
[1747827089965,2.28112792,655.6,654.84,0.90439119]
[1747827090165,2.28112792,655.52,654.85,0.90439119]
[1747827090365,2.28112792,655.52,654.86,2.07407107]
[1747827090666,2.28112792,655.52,654.87,0.90439119]
[1747827090868,2.28112792,655.52,654.88,1.76890268]
[1747827091068,2.28112792,655.52,654.89,0.5992228]
[1747827092369,2.28112792,655.51,654.9,0.30512309]
[1747827092569,2.28112792,655.51,654.91,0.5992228]
[1747827094067,2.28112792,655.51,654.92,0.30512309]
[1747827094273,2.28112792,655.51,654.93,0.5992228]
[1747827095270,2.28112792,655.51,654.94,0.30512309]
[1747827095471,2.28112792,655.51,654.95,0.59955999]
[1747827095672,2.28112792,655.51,654.96,0.59960588]
[1747827095872,2.28112792,655.51,654.94,0.30512309]
[1747827096075,2.28112792,655.51,654.95,0.59959727]
[1747827096374,2.28112792,655.51,654.96,0.59959727]
[1747827096674,2.28112792,655.51,654.97,0.59959727]
[1747827096875,2.28112792,655.51,654.97,0.30512309]
[1747827098474,2.28112792,655.5,654.79,0.30512309]
[1747827098676,2.28112792,655.5,654.8,0.90540197]
[1747827098976,2.28112792,655.5,654.81,2.07576898]
[1747827099275,2.28112792,655.5,654.82,2.07576898]
[1747827099475,2.28112792,655.5,654.83,0.90540197]
[1747827099775,2.28112792,655.5,654.84,2.38089207]
[1747827099970,2.28112792,655.5,654.85,0.90540197]
[1747827100173,2.28112792,655.5,654.86,0.90540197]
[1747827100370,2.28112792,655.5,654.87,2.07576898]
[1747827100673,2.28112792,655.5,654.88,0.90540109]
[1747827100869,2.28112792,655.5,654.89,2.0757681]
[1747827101074,2.28112792,655.5,654.9,0.60022799]
[1747827101274,2.28112792,655.5,654.91,1.770595]
[1747827101474,2.28112792,655.5,654.92,0.60022799]
[1747827101673,2.28112792,655.5,654.93,0.60022799]
[1747827101873,2.28112792,655.5,654.94,0.60022799]
[1747827102478,2.28112792,655.5,654.95,0.60000739]
[1747827102676,2.28112792,655.5,654.96,0.60000739]
[1747827102873,2.28112792,655.5,654.97,0.60000739]
[1747827103078,2.28112792,655.5,654.93,0.30512309]
[1747827103277,2.28112792,655.5,654.94,0.60004739]
[1747827103577,2.28112792,655.5,654.95,0.60004739]
[1747827103774,2.28112792,655.5,654.8,0.30512309]
[1747827103971,2.28112792,655.5,654.81,0.600217]
[1747827104273,2.28112792,655.5,654.82,1.7716292]
[1747827104475,2.28112792,655.5,654.83,0.600217]
[1747827104676,2.28112792,655.74,654.83,0.90534009]
[1747827104876,2.28112792,655.74,654.84,1.7716292]
[1747827105071,2.28112792,655.74,654.85,0.600217]
[1747827105275,2.28112792,655.74,654.84,1.1714122]
[1747827105578,2.28112792,655.74,654.83,0.30512309]
[1747827106077,2.28112792,655.74,654.58,0.30512309]
[1747827106378,2.28112792,655.74,654.59,0.90578265]
[1747827106578,2.28112792,655.74,654.6,2.07777465]
[1747827106778,2.28112792,655.74,654.61,0.90578265]
[1747827106978,2.28112792,655.74,654.62,0.90578265]
[1747827107180,2.28112792,655.74,654.63,0.90578265]
[1747827107378,2.28112792,655.74,654.64,0.90578265]
[1747827107579,2.28112792,655.74,654.65,0.60051341]
[1747827107779,2.28112792,655.74,654.66,1.77235703]
[1747827107981,2.28112792,655.51,654.67,0.60036503]
[1747827108279,2.28112792,655.51,654.68,1.171992]
[1747827108779,2.28112792,655.51,654.64,0.30512309]
[1747827108981,2.28112792,655.51,654.65,0.6002714]
[1747827109177,2.28112792,655.51,654.66,0.6002714]
[1747827109482,2.28112792,655.51,654.67,0.30512309]
[1747827111181,2.28112792,655.32,654.47,0.30512309]
[1747827111382,2.28112792,655.32,654.48,0.90524359]
[1747827111582,2.28112792,655.32,654.49,0.90524359]
[1747827111782,2.28112792,655.32,654.5,0.90524359]
[1747827112086,2.28112792,655.32,654.51,1.21036668]
[1747827112281,2.28112792,655.32,654.52,2.07705787]
[1747827112481,2.28112792,655.32,654.53,0.90524359]
[1747827112683,2.28112792,655.32,654.54,2.07705787]
[1747827112884,2.28112792,655.32,654.55,0.5999422]
[1747827113084,2.28112792,655.32,654.56,0.5999422]
[1747827113278,2.28112792,655.32,654.57,0.5999422]
[1747827113483,2.28112792,655.32,654.58,1.77175648]
[1747827113683,2.28112792,655.32,654.59,0.5999422]
[1747827113984,2.28112792,655.57,654.6,0.5999422]
[1747827114185,2.28112792,655.57,654.61,0.5999422]
[1747827114382,2.28112792,655.57,654.58,0.30512309]
[1747827114686,2.28112792,655.57,654.59,0.59946575]
[1747827114886,2.28112792,655.57,654.6,0.59947213]
[1747827115085,2.28112792,655.57,654.6,0.30512309]
[1747827116586,2.28112792,655.57,654.33,0.30512309]
[1747827116781,2.28112792,655.57,654.34,0.90460548]
[1747827116985,2.28112792,655.57,654.35,2.07551975]
[1747827117288,2.28112792,655.57,654.36,0.90460548]
[1747827117488,2.28112792,655.57,654.37,2.07551975]
[1747827117685,2.28112792,655.57,654.38,0.90460548]
[1747827117887,2.28112792,655.57,654.39,2.07551975]
[1747827118087,2.28112792,655.57,654.4,0.90460548]
[1747827118287,2.28112792,655.57,654.41,0.90460548]
[1747827118488,2.28112792,655.57,654.42,2.07552024]
[1747827118787,2.28112792,655.57,654.43,0.90460597]
[1747827118989,2.28112792,655.57,654.44,2.07552024]
[1747827119290,2.28112792,655.57,654.45,2.38064333]
[1747827119589,2.28112792,655.57,654.46,0.59927874]
[1747827119789,2.28112792,655.57,654.47,1.77019301]
[1747827119989,2.28112792,655.57,654.48,0.59927874]
[1747827120189,2.28112792,655.57,654.49,1.77002098]
[1747827120382,2.28112792,655.57,654.5,0.59910671]
[1747827120786,2.28112792,655.4,654.5,0.9042298]
[1747827120989,2.28112792,655.4,654.51,0.59910671]
[1747827122093,2.28112792,655.4,654.52,0.30512309]
[1747827122391,2.28112792,655.4,654.53,0.59910671]
[1747827122593,2.28112792,655.4,654.54,0.59910671]
[1747827122792,2.28112792,655.4,654.52,0.30512309]
[1747827122995,2.28112792,655.4,654.53,0.5988637]
[1747827123187,2.28112792,655.4,654.52,0.30512309]
[1747827123389,2.28112792,655.42,654.53,0.59881892]
[1747827123587,2.28112792,655.42,654.31,0.30512309]
[1747827123791,2.28112792,655.42,654.32,0.90412255]
[1747827123990,2.28112792,655.42,654.31,0.30512309]
[1747827123991,2.28112792,655.42,654.33,2.0736217]
[1747827124187,2.28112792,655.42,654.34,1.20924564]
[1747827124486,2.28112792,655.42,654.35,2.0736217]
[1747827124688,2.28112792,655.42,654.36,0.90412255]
[1747827124891,2.28112792,655.42,654.37,0.90412255]
[1747827125197,2.28112792,655.42,654.38,2.0736217]
[1747827125394,2.28112792,655.42,654.39,0.90412255]
[1747827125595,2.28112792,655.42,654.4,0.90412255]
[1747827125794,2.28112792,655.49,654.41,1.76829457]
[1747827125990,2.28112792,655.49,654.42,0.59879542]
[1747827126194,2.28112792,655.49,654.43,1.76829457]
[1747827126390,2.28112792,655.49,654.44,0.59879542]
[1747827126591,2.28112792,655.49,654.45,0.59879542]
[1747827126797,2.28112792,655.49,654.46,0.59879542]
[1747827127094,2.28112792,655.49,654.47,0.59879542]
[1747827127292,2.28112792,655.49,654.48,0.59879542]
[1747827127489,2.28112792,655.49,654.45,0.30512309]
[1747827127693,2.28112792,655.49,654.46,0.59854968]
[1747827127990,2.28112792,655.5,654.49,0.30512309]
[1747827129195,2.28112792,655.5,654.23,0.30512309]
[1747827129390,2.28112792,655.5,654.24,0.90375316]
[1747827129595,2.28112792,655.5,654.25,0.90375316]
[1747827129796,2.28112792,655.5,654.26,0.90375316]
[1747827129997,2.28112792,655.5,654.27,2.07277711]
[1747827130198,2.28112792,655.5,654.28,0.90375316]
[1747827130395,2.28112792,655.5,654.29,2.07277711]
[1747827130594,2.28112792,655.5,654.3,0.90375316]
[1747827130794,2.28112792,655.5,654.31,2.07277711]
[1747827131093,2.28112792,655.5,654.32,0.90375316]
[1747827131293,2.28112792,655.5,654.33,2.07277711]
[1747827131498,2.28112792,655.5,654.34,0.90375316]
[1747827131701,2.28112792,655.5,654.35,0.90375316]
[1747827131898,2.28112792,655.5,654.36,2.07277711]
[1747827132098,2.28112792,655.5,654.37,2.07277711]
[1747827132399,2.28112792,655.5,654.38,2.07277711]
[1747827132595,2.28112792,655.5,654.39,0.90375316]
[1747827132795,2.28112792,655.5,654.4,0.90375316]
[1747827133001,2.28112792,655.5,654.41,0.59841341]
[1747827133299,2.28112792,655.5,654.42,1.76743736]
[1747827133502,2.28112792,655.5,654.43,0.59841341]
[1747827133701,2.28112792,655.52,654.44,0.59841341]
[1747827133895,2.28112792,655.52,654.45,0.59841341]
[1747827134099,2.28112792,655.52,654.46,0.59841341]
[1747827134398,2.28112792,655.52,654.43,1.16902395]
[1747827134602,2.28112792,655.52,654.44,1.76703709]
[1747827134902,2.28112792,655.52,654.45,1.20845382]
[1747827135202,2.28112792,655.52,654.46,2.07235468]
[1747827135401,2.28112792,655.52,654.47,2.07235468]
[1747827135603,2.28112792,655.52,654.48,0.90304579]
[1747827135902,2.28112792,655.52,654.49,2.07206974]
[1747827136104,2.28112792,655.52,654.5,0.90304579]
[1747827136301,2.28112792,655.58,654.51,0.90304579]
[1747827136503,2.28112792,655.58,654.52,2.07206974]
[1747827136703,2.28112792,655.58,654.53,0.59775959]
[1747827136899,2.28112792,655.58,654.54,1.76678354]
[1747827137101,2.28112792,655.58,654.55,0.59775959]
[1747827137304,2.28112792,655.58,654.56,2.07190663]
[1747827137504,2.28112792,655.58,654.57,0.59775959]
[1747827139005,2.28112792,655.58,654.58,0.30512309]
[1747827139203,2.28112792,655.58,654.59,0.59775015]
[1747827139401,2.28112792,655.58,654.6,0.59775015]
[1747827139603,2.28112792,655.58,654.58,0.30512309]
[1747827139806,2.28112792,655.58,654.59,0.5978014]
[1747827140006,2.28112792,655.58,654.6,0.90292449]
[1747827140209,2.28112792,655.58,654.6,0.30512309]
[1747827141510,2.28112792,655.58,654.61,0.59789466]
[1747827141711,2.28112792,655.58,654.39,0.30512309]
[1747827142012,2.28112792,655.58,654.4,2.07125588]
[1747827142210,2.28112792,655.58,654.41,0.90320319]
[1747827142411,2.28112792,655.58,654.42,0.90320319]
[1747827142613,2.28112792,655.58,654.43,2.37637897]
[1747827142813,2.28112792,655.58,654.44,0.90320319]
[1747827143008,2.28112792,655.58,654.45,0.90320319]
[1747827143206,2.28112792,655.58,654.46,2.07125588]
[1747827143407,2.28112792,655.58,654.47,0.90320319]
[1747827143607,2.28112792,655.58,654.48,0.90320319]
[1747827143908,2.28112792,655.58,654.49,2.07125588]
[1747827144110,2.28112792,655.58,654.5,2.07125588]
[1747827144410,2.28112792,655.58,654.48,0.30512309]
[1747827144411,2.28112792,655.58,654.51,2.07125588]
[1747827144610,2.28112792,655.58,654.52,0.90337381]
[1747827144811,2.28112792,655.58,654.53,2.07126777]
[1747827145010,2.28112792,655.58,654.54,0.59809199]
[1747827145212,2.28112792,655.58,654.55,1.16805269]
[1747827145411,2.28112792,655.58,654.56,0.59809199]
[1747827146113,2.28112792,655.52,654.57,0.90321508]
[1747827146308,2.28112792,655.52,654.58,0.59809199]
[1747827147214,2.28112792,655.52,654.59,0.30512309]
[1747827149018,2.28112792,655.53,654.37,0.30512309]
[1747827149219,2.28112792,655.53,654.38,2.07293215]
[1747827149412,2.28112792,655.53,654.39,2.07293215]
[1747827149611,2.28112792,655.53,654.4,0.90379393]
[1747827149918,2.28112792,655.53,654.41,2.07293215]
[1747827150118,2.28112792,655.53,654.42,0.90382487]
[1747827150313,2.28112792,655.53,654.43,0.90382594]
[1747827150515,2.28112792,655.53,654.44,2.07296416]
[1747827150716,2.28112792,655.53,654.45,2.07296416]
[1747827150918,2.28112792,655.53,654.46,0.90382594]
[1747827151118,2.28112792,655.53,654.47,1.76766577]
[1747827151319,2.28112792,655.53,654.48,0.59852755]
[1747827151620,2.28112792,655.61,654.48,1.76766577]
[1747827151820,2.28112792,655.61,654.49,0.59852755]
[1747827152017,2.28112792,655.61,654.5,1.16913822]
[1747827152218,2.28112792,655.61,654.51,1.76766577]
[1747827152422,2.28112792,655.61,654.52,0.59852755]
[1747827152927,2.28112792,655.61,654.53,0.90365064]
[1747827153215,2.28112792,655.61,654.54,0.59852755]
[1747827153617,2.28112792,655.61,654.55,0.59899893]
[1747827153921,2.28112792,655.61,654.56,0.59899893]
[1747827154120,2.28112792,655.61,654.57,0.59898815]
[1747827154319,2.28112792,655.61,654.53,0.30512309]
[1747827154620,2.28112792,655.61,654.1,0.26565494]
[1747827154621,2.28112792,655.6,654.57,0.30512309]
[1747827155019,2.28112792,655.6,654.58,0.5990746]
[1747827155220,2.28112792,655.6,654.59,0.59904971]
[1747827155516,2.28112792,655.6,654.6,0.90428769]
[1747827155720,2.28112792,655.6,654.6,0.30512309]
[1747827155920,2.28112792,655.6,654.61,0.59915072]
[1747827156122,2.28112792,655.6,654.6,0.30512309]
[1747827156321,2.28112792,655.6,654.61,0.59915328]
[1747827156523,2.28112792,655.6,654.6,0.30512309]
[1747827156723,2.28112792,655.6,654.61,0.59927413]
[1747827156923,2.28112792,655.49,654.62,0.59926018]
[1747827157123,2.28112792,655.49,654.63,0.59921371]
[1747827157422,2.28112792,655.49,654.64,0.59921371]
[1747827157625,2.28112792,655.49,654.65,0.59921371]
[1747827157818,2.28112792,655.49,654.66,0.90445502]
[1747827158019,2.28112792,655.49,654.66,0.30512309]
[1747827159320,2.28112792,655.49,654.67,0.5996724]
[1747827159524,2.28112792,655.44,654.43,0.27638077]
[1747827159726,2.28112792,655.44,654.44,0.90494888]
[1747827159921,2.28112792,655.44,654.45,0.90494888]
[1747827160122,2.28112792,655.44,654.46,0.90494888]
[1747827160320,2.28112792,655.44,654.47,0.90494888]
[1747827160521,2.28112792,655.44,654.48,2.07550112]
[1747827160724,2.28112792,655.44,654.49,2.07550112]
[1747827160924,2.28112792,655.44,654.5,0.90494888]
[1747827161120,2.28112792,655.44,654.51,0.90514796]
[1747827161426,2.28112792,655.44,654.49,1.17055224]
[1747827161427,2.28112792,655.44,654.52,0.90514796]
[1747827161626,2.28112792,655.44,654.53,2.0757002]
[1747827161826,2.28112792,655.44,654.54,0.90514796]
[1747827162025,0.26567116,655.9,654.53,1.17055224]
[1747827162026,2.28112792,655.43,654.55,0.90514796]
[1747827162327,2.28112792,655.43,654.56,2.07570139]
[1747827162627,2.28112792,655.43,654.57,2.07570139]
[1747827162926,2.28112792,655.43,654.58,2.07570139]
[1747827163129,2.28112792,655.43,654.59,0.90514915]
[1747827163328,2.28112792,655.43,654.6,0.90514915]
[1747827163628,2.28112792,655.43,654.61,1.21027224]
[1747827163828,2.28112792,655.43,654.62,2.07570139]
[1747827164023,2.28112792,655.43,654.63,0.90514915]
[1747827164226,2.28112792,655.43,654.64,0.59986152]
[1747827164427,2.28112792,655.43,654.65,1.77041376]
[1747827164629,2.28112792,655.43,654.66,0.59986152]
[1747827164829,2.28112792,655.43,654.67,1.17055224]
[1747827165024,2.28112792,655.43,654.68,0.59986152]
[1747827165228,2.28112792,655.37,654.68,0.59986152]
[1747827165928,2.28112792,655.37,654.69,0.30512309]
[1747827166128,2.28112792,655.37,654.7,0.59986152]
[1747827167330,2.28112792,655.37,654.71,0.30512309]
[1747827168236,2.28112792,655.37,654.47,0.30512309]
[1747827168528,2.28112792,655.37,654.48,0.90626981]
[1747827168728,2.28112792,655.37,654.49,0.90626981]
[1747827169027,2.28112792,655.37,654.5,2.0780286]
[1747827169222,2.28112792,655.37,654.51,0.90626981]
[1747827169429,2.28112792,655.37,654.52,2.0780286]
[1747827169628,2.28112792,655.37,654.53,0.90626981]
[1747827169824,2.28112792,655.37,654.54,2.0780286]
[1747827170026,2.28112792,655.37,654.55,2.0780286]
[1747827170230,2.28112792,655.37,654.56,0.9062734]
[1747827170430,2.28112792,655.37,654.57,0.9062734]
[1747827170631,2.28112792,655.37,654.58,2.07803219]
[1747827170931,2.28112792,655.37,654.59,1.21139649]
[1747827171135,2.28112792,655.37,654.6,0.60096701]
[1747827171432,2.28112792,655.37,654.61,1.17175879]
[1747827171633,2.28112792,655.37,654.62,0.60096701]
[1747827172133,2.28112792,655.31,654.63,0.9060901]
[1747827172328,2.28112792,655.31,654.64,0.60096701]
[1747827173333,2.28112792,655.31,654.65,0.30512309]
[1747827173632,2.28112792,655.31,654.66,0.60096701]
[1747827174837,2.28112792,655.46,654.67,0.30512309]
[1747827175135,2.28112792,655.46,654.68,0.60096701]
[1747827176138,2.28112792,655.46,654.69,0.30512309]
[1747827178238,2.28112792,655.45,654.4,0.58150386]
[1747827178534,2.28112792,655.45,654.41,2.07825735]
[1747827178733,2.28112792,655.45,654.42,0.90634747]
[1747827178937,2.28112792,655.45,654.41,1.17190988]
[1747827178938,2.28112792,655.45,654.43,2.07825735]
[1747827179138,2.28112792,655.45,654.44,1.21133849]
[1747827179332,2.28112792,655.45,654.45,0.9062154]
[1747827179535,2.28112792,655.45,654.46,2.07812528]
[1747827179739,2.28112792,655.45,654.47,0.9062154]
[1747827179938,2.28112792,655.45,654.48,2.07812528]
[1747827180236,2.28112792,655.45,654.49,2.07812528]
[1747827180432,2.28112792,655.45,654.5,2.07812528]
[1747827180633,2.28112792,655.48,654.51,0.9062154]
[1747827180837,2.28112792,655.48,654.52,2.07799594]
[1747827181037,2.28112792,655.48,654.53,0.90608606]
[1747827181240,2.28112792,655.48,654.54,2.07799594]
[1747827181437,2.28112792,655.48,654.55,0.90608606]
[1747827181635,2.28112792,655.48,654.56,2.38311903]
[1747827181836,2.28112792,655.48,654.57,0.90608606]
[1747827182036,2.28112792,655.48,654.58,0.90609306]
[1747827182236,2.28112792,655.48,654.59,2.07800294]
[1747827182435,2.28112792,655.48,654.6,0.90609306]
[1747827182736,2.28112792,655.48,654.61,2.07800294]
[1747827182933,2.28112792,655.48,654.62,0.90609306]
[1747827183134,2.28112792,655.34,654.63,0.90609306]
[1747827183336,2.28112792,655.34,654.64,0.60079454]
[1747827183637,2.28112792,655.34,654.65,0.60079454]
[1747827183835,2.28112792,655.34,654.66,1.77259122]
[1747827184033,2.28112792,655.34,654.67,0.60068134]
[1747827184341,2.28112792,655.34,654.68,1.47703297]
[1747827184641,2.28112792,655.34,654.69,0.60068134]
[1747827184842,2.28112792,655.34,654.7,0.60068134]
[1747827185042,2.28112792,655.34,654.71,0.60068134]
[1747827185342,2.28112792,655.34,654.72,0.60068134]
[1747827185542,2.28112792,655.42,654.73,0.6006162]
[1747827185742,2.28112792,655.42,654.72,0.30512309]
[1747827185941,2.28112792,655.42,654.73,0.60061547]
[1747827186140,2.28112792,655.42,654.72,0.30512309]
[1747827186341,2.28112792,655.42,654.73,0.60063043]
[1747827186542,2.28112792,655.42,654.74,0.60063043]
[1747827186843,2.28112792,655.42,654.72,0.30512309]
[1747827187040,2.28112792,655.42,654.73,0.60062891]
[1747827187343,2.28112792,655.42,654.74,0.60062891]
[1747827187539,2.28112792,655.42,654.5,0.30512309]
[1747827187839,2.28112792,655.42,654.51,2.07700662]
[1747827188038,2.28112792,655.42,654.52,2.07700662]
[1747827188346,2.28112792,655.42,654.53,0.90590357]
[1747827188540,2.28112792,655.35,654.54,2.07700662]
[1747827188740,2.28112792,655.35,654.55,0.90590357]
[1747827189043,2.28112792,655.35,654.56,2.07700662]
[1747827189244,2.28112792,655.35,654.57,0.90590357]
[1747827189444,2.28112792,655.35,654.58,2.07700662]
[1747827189745,2.28112792,655.35,654.59,0.90590357]
[1747827189944,2.28112792,655.35,654.6,1.21102666]
[1747827190145,2.28112792,655.35,654.61,0.90590357]
[1747827190344,2.28112792,655.35,654.62,2.07700662]
[1747827190645,2.28112792,655.35,654.63,0.90590357]
[1747827190840,2.28112792,655.35,654.64,0.90590357]
[1747827191144,2.28112792,655.35,654.65,2.07700662]
[1747827191445,2.28112792,655.35,654.66,1.77172048]
[1747827191745,2.28112792,655.35,654.67,0.60061743]
[1747827191944,3.80507004,655.93,654.68,1.17110305]
[1747827191945,2.28112792,655.32,654.68,1.17110305]
[1747827192144,2.28112792,655.32,654.69,0.60061743]
[1747827192944,2.28112792,655.32,654.7,0.60061743]
[1747827193144,2.28112792,655.32,654.71,0.60061743]
[1747827193345,2.28112792,655.32,654.53,0.27638077]
[1747827193346,2.28112792,655.32,654.72,0.90574052]
[1747827193645,2.28112792,655.32,654.73,0.60061743]
[1747827194346,2.28112792,655.32,654.74,0.60099694]
[1747827194545,2.28112792,655.32,654.75,0.60099694]
[1747827194742,2.28112792,655.32,654.76,0.60099694]
[1747827194947,2.28112792,655.32,654.72,0.30512309]
[1747827195147,2.28112792,655.2,654.76,0.30512309]
[1747827196044,2.28112792,655.2,654.6,0.30512309]
[1747827196253,2.28112792,655.2,654.61,0.90635189]
[1747827196547,2.28112792,655.2,654.62,0.90635189]
[1747827196745,2.28112792,655.2,654.63,2.07886251]
[1747827196947,2.28112792,655.2,654.64,0.90635189]
[1747827197145,2.28112792,655.2,654.65,2.07886251]
[1747827197347,2.28112792,655.2,654.66,0.90635189]
[1747827197547,2.28112792,655.2,654.67,2.07886251]
[1747827197749,2.28112792,655.3,654.68,0.60106508]
[1747827197949,2.28112792,655.3,654.69,0.60106508]
[1747827198147,2.28112792,655.3,654.7,1.7735757]
[1747827198348,2.28112792,655.3,654.71,0.60106508]
[1747827198850,2.28112792,655.3,654.72,0.60106508]
[1747827199150,2.28112792,655.3,654.73,0.60106508]
[1747827199349,2.28112792,655.3,654.74,0.60106508]
[1747827199550,2.28112792,655.3,654.66,0.30512309]
[1747827199750,2.28112792,655.3,654.75,0.30512309]
[1747827201051,2.28112792,655.28,654.56,0.30512309]
[1747827201252,2.28112792,655.28,654.57,2.07981737]
[1747827201455,2.28112792,655.28,654.58,0.90652997]
[1747827201752,2.28112792,655.28,654.59,0.90652997]
[1747827202053,2.28112792,655.28,654.6,0.90652997]
[1747827202253,2.28112792,655.28,654.61,2.07981697]
[1747827202455,2.28112792,655.28,654.62,0.90652997]
[1747827202654,2.28112792,655.28,654.63,2.07981697]
[1747827202953,2.28112792,655.28,654.64,0.90652997]